[Event "Titled Tuesday Blitz May 10 Late 2022"]
[White "Vlassov, Nikolai"]
[Black "Federzoni, Enzo"]
[WhiteFideId "4103360"]
[BlackFideId "2173301"]
[WhiteElo "2407"]
[BlackElo "1956"]
[Result "1-0"]
[Round "02"]
[TimeControl "180+1"]
[Date "2022.05.11"]
[WhiteClock "0:00:13"]
[BlackClock "0:00:05"]

1. e4 {[%clk 0:03:00]}  c6 {[%clk 0:02:57]} 2. d4 {[%clk 0:03:00]}  d5 {[%clk 0:02:57]} 3. e5 {[%clk 0:03:01]}  c5 {[%clk 0:02:57]} 4. dxc5 {[%clk 0:03:01]}  e6 {[%clk 0:02:55]} 5. Nf3 {[%clk 0:03:01]}  Bxc5 {[%clk 0:02:43]} 6. Bd3 {[%clk 0:03:01]}  Ne7 {[%clk 0:02:38]} 7. O-O {[%clk 0:03:00]}  Ng6 {[%clk 0:02:39]} 8. Qe2 {[%clk 0:02:58]}  Nc6 {[%clk 0:02:33]} 9. c3 {[%clk 0:02:55]}  Qc7 {[%clk 0:02:32]} 10. Re1 {[%clk 0:02:55]}  f6 {[%clk 0:02:28]} 11. Bxg6+ {[%clk 0:02:47]}  hxg6 {[%clk 0:02:27]} 12. b4 {[%clk 0:02:45]}  Bb6 {[%clk 0:02:06]} 13. b5 {[%clk 0:02:31]}  Nxe5 {[%clk 0:02:03]} 14. Nxe5 {[%clk 0:02:32]}  fxe5 {[%clk 0:02:00]} 15. Qxe5 {[%clk 0:02:30]}  Qxe5 {[%clk 0:02:00]} 16. Rxe5 {[%clk 0:02:29]}  Bc7 {[%clk 0:02:01]} 17. Rg5 {[%clk 0:02:26]}  Bxh2+ {[%clk 0:02:00]} 18. Kf1 {[%clk 0:02:25]}  Bd6 {[%clk 0:01:55]} 19. Kg1 {[%clk 0:02:12]}  Kf7 {[%clk 0:01:51]} 20. Be3 {[%clk 0:01:40]}  e5 {[%clk 0:01:45]} 21. Nd2 {[%clk 0:01:39]}  Bf5 {[%clk 0:01:37]} 22. a4 {[%clk 0:01:27]}  Bd3 {[%clk 0:01:21]} 23. Nf3 {[%clk 0:01:16]}  Rae8 {[%clk 0:01:00]} 24. Bxa7 {[%clk 0:01:09]}  e4 {[%clk 0:00:58]} 25. Rxd5 {[%clk 0:01:09]}  Bf4 {[%clk 0:00:28]} 26. Ng5+ {[%clk 0:01:01]}  Kf6 {[%clk 0:00:24]} 27. Bd4+ {[%clk 0:01:00]}  Be5 {[%clk 0:00:20]} 28. Rxe5 {[%clk 0:00:58]}  Rxe5 {[%clk 0:00:20]} 29. Bxe5+ {[%clk 0:00:58]}  Kxg5 {[%clk 0:00:20]} 30. Bxg7 {[%clk 0:00:57]}  Ra8 {[%clk 0:00:19]} 31. c4 {[%clk 0:00:41]}  Bxc4 {[%clk 0:00:19]} 32. Bd4 {[%clk 0:00:36]}  Kf5 {[%clk 0:00:16]} 33. b6 {[%clk 0:00:30]}  Ke6 {[%clk 0:00:13]} 34. a5 {[%clk 0:00:30]}  Kd5 {[%clk 0:00:13]} 35. Be3 {[%clk 0:00:30]}  Ba6 {[%clk 0:00:11]} 36. Rc1 {[%clk 0:00:28]}  Re8 {[%clk 0:00:07]} 37. Rc5+ {[%clk 0:00:27]}  Ke6 {[%clk 0:00:06]} 38. g4 {[%clk 0:00:26]}  Re7 {[%clk 0:00:05]} 39. Kg2 {[%clk 0:00:26]}  Rd7 {[%clk 0:00:05]} 40. Kg3 {[%clk 0:00:27]}  Kf7 {[%clk 0:00:06]} 41. Kf4 {[%clk 0:00:27]}  Re7 {[%clk 0:00:06]} 42. Rd5 {[%clk 0:00:23]}  Kg8 {[%clk 0:00:06]} 43. Kg5 {[%clk 0:00:23]}  Kf7 {[%clk 0:00:06]} 44. Bd4 {[%clk 0:00:22]}  Bc4 {[%clk 0:00:06]} 45. Rd6 {[%clk 0:00:22]}  Ba6 {[%clk 0:00:06]} 46. Rf6+ {[%clk 0:00:21]}  Ke8 {[%clk 0:00:06]} 47. Rxg6 {[%clk 0:00:21]}  Kd7 {[%clk 0:00:06]} 48. Rg7 {[%clk 0:00:17]}  Rxg7+ {[%clk 0:00:06]} 49. Bxg7 {[%clk 0:00:17]}  Ke6 {[%clk 0:00:06]} 50. Bd4 {[%clk 0:00:17]}  Kf7 {[%clk 0:00:05]} 51. Kf5 {[%clk 0:00:17]}  Bd3 {[%clk 0:00:05]} 52. Be3 {[%clk 0:00:16]}  Kg7 {[%clk 0:00:05]} 53. g5 {[%clk 0:00:16]}  Kf7 {[%clk 0:00:05]} 54. g6+ {[%clk 0:00:17]}  Kg7 {[%clk 0:00:05]} 55. Bd4+ {[%clk 0:00:17]}  Kg8 {[%clk 0:00:06]} 56. Kf6 {[%clk 0:00:17]}  Ba6 {[%clk 0:00:05]} 57. g7 {[%clk 0:00:16]}  Bd3 {[%clk 0:00:06]} 58. Ke5 {[%clk 0:00:15]}  Kf7 {[%clk 0:00:05]} 59. Kf4 {[%clk 0:00:13]}  Kg8 {[%clk 0:00:05]} 60. Ke3 {[%clk 0:00:13]}  Kf7 {[%clk 0:00:06]} 61. f3 {[%clk 0:00:13]}  exf3 {[%clk 0:00:05]} 62. Kxd3 {[%clk 0:00:13]} 1-0


[Site "https://www.chess.com"]

[Event "Titled Tuesday Blitz May 10 Late 2022"]
[White "Voiteanu, Gabriel"]
[Black "Papp, Levente"]
[WhiteFideId "1208810"]
[BlackFideId "751243"]
[WhiteElo "2001"]
[BlackElo "2308"]
[Result "0-1"]
[Round "02"]
[TimeControl "180+1"]
[Date "2022.05.11"]
[WhiteClock "0:00:03"]
[BlackClock "0:00:43"]

1. d4 {[%clk 0:02:58]}  e6 {[%clk 0:03:00]} 2. g3 {[%clk 0:02:56]}  Nf6 {[%clk 0:02:58]} 3. Nf3 {[%clk 0:02:54]}  c5 {[%clk 0:02:56]} 4. Bg2 {[%clk 0:02:54]}  Nc6 {[%clk 0:02:55]} 5. O-O {[%clk 0:02:52]}  cxd4 {[%clk 0:02:52]} 6. Nxd4 {[%clk 0:02:51]}  Bc5 {[%clk 0:02:51]} 7. Nb3 {[%clk 0:02:51]}  Be7 {[%clk 0:02:49]} 8. c4 {[%clk 0:02:46]}  O-O {[%clk 0:02:48]} 9. c5 {[%clk 0:02:41]}  d6 {[%clk 0:02:45]} 10. cxd6 {[%clk 0:02:37]}  Qxd6 {[%clk 0:02:46]} 11. Qxd6 {[%clk 0:02:32]}  Bxd6 {[%clk 0:02:47]} 12. Bg5 {[%clk 0:02:32]}  Be7 {[%clk 0:02:38]} 13. Nc3 {[%clk 0:02:29]}  h6 {[%clk 0:02:36]} 14. Bxf6 {[%clk 0:02:26]}  Bxf6 {[%clk 0:02:37]} 15. Ne4 {[%clk 0:02:26]}  Bxb2 {[%clk 0:02:36]} 16. Rad1 {[%clk 0:02:25]}  Ba3 {[%clk 0:02:23]} 17. Nd6 {[%clk 0:02:21]}  Rd8 {[%clk 0:02:19]} 18. Nb5 {[%clk 0:02:14]}  Be7 {[%clk 0:02:12]} 19. Rxd8+ {[%clk 0:02:09]}  Nxd8 {[%clk 0:02:10]} 20. Rd1 {[%clk 0:02:02]}  a6 {[%clk 0:02:05]} 21. Nd6 {[%clk 0:01:58]}  Kf8 {[%clk 0:02:03]} 22. Nc5 {[%clk 0:01:51]}  Bxd6 {[%clk 0:01:53]} 23. Rxd6 {[%clk 0:01:52]}  Ke7 {[%clk 0:01:53]} 24. Rb6 {[%clk 0:01:43]}  Bd7 {[%clk 0:01:38]} 25. a4 {[%clk 0:01:17]}  Rc8 {[%clk 0:01:32]} 26. Nxd7 {[%clk 0:00:58]}  Rc1+ {[%clk 0:01:31]} 27. Bf1 {[%clk 0:00:59]}  Kxd7 {[%clk 0:01:32]} 28. f4 {[%clk 0:00:54]}  Kc7 {[%clk 0:01:30]} 29. Rb4 {[%clk 0:00:49]}  Nc6 {[%clk 0:01:30]} 30. Rb2 {[%clk 0:00:43]}  Ra1 {[%clk 0:01:28]} 31. Kf2 {[%clk 0:00:42]}  Rxa4 {[%clk 0:01:28]} 32. Bg2 {[%clk 0:00:42]}  b5 {[%clk 0:01:24]} 33. f5 {[%clk 0:00:31]}  exf5 {[%clk 0:01:23]} 34. Bd5 {[%clk 0:00:30]}  f6 {[%clk 0:01:19]} 35. Rc2 {[%clk 0:00:30]}  Kd6 {[%clk 0:00:58]} 36. Bxc6 {[%clk 0:00:29]}  f4 {[%clk 0:00:58]} 37. Kf3 {[%clk 0:00:24]}  fxg3 {[%clk 0:00:58]} 38. hxg3 {[%clk 0:00:24]}  Ra3+ {[%clk 0:00:57]} 39. e3 {[%clk 0:00:22]}  b4 {[%clk 0:00:57]} 40. Be8 {[%clk 0:00:20]}  b3 {[%clk 0:00:55]} 41. Rc6+ {[%clk 0:00:16]}  Kd5 {[%clk 0:00:50]} 42. Rb6 {[%clk 0:00:14]}  Kc4 {[%clk 0:00:49]} 43. Bf7+ {[%clk 0:00:13]}  Kc3 {[%clk 0:00:49]} 44. Kg4 {[%clk 0:00:11]}  b2 {[%clk 0:00:43]} 45. Kh5 {[%clk 0:00:06]}  Ra5+ {[%clk 0:00:43]} 46. Kg6 {[%clk 0:00:05]}  Rg5+ {[%clk 0:00:43]} 47. Kh7 {[%clk 0:00:04]}  Rxg3 {[%clk 0:00:44]} 48. Bg6 {[%clk 0:00:03]}  a5 {[%clk 0:00:43]} 0-1


[Site "https://www.chess.com"]

[Event "Titled Tuesday Blitz May 10 Late 2022"]
[White "Vovk, Orest"]
[Black "Nilsson, Joakim"]
[WhiteFideId "14113490"]
[BlackFideId "1723383"]
[WhiteElo "2203"]
[BlackElo "2210"]
[Result "1-0"]
[Round "02"]
[TimeControl "180+1"]
[Date "2022.05.11"]
[WhiteClock "0:00:25"]
[BlackClock "0:02:05"]

1. h4 {[%clk 0:02:56]}  e5 {[%clk 0:02:58]} 2. h5 {[%clk 0:02:52]}  h6 {[%clk 0:02:57]} 3. Nc3 {[%clk 0:02:51]}  Nf6 {[%clk 0:02:57]} 4. d4 {[%clk 0:02:52]}  exd4 {[%clk 0:02:56]} 5. Qxd4 {[%clk 0:02:53]}  Nc6 {[%clk 0:02:56]} 6. Qa4 {[%clk 0:02:53]}  Bb4 {[%clk 0:02:57]} 7. Bd2 {[%clk 0:02:52]}  d5 {[%clk 0:02:57]} 8. O-O-O {[%clk 0:02:52]}  O-O {[%clk 0:02:56]} 9. Nf3 {[%clk 0:02:50]}  Be6 {[%clk 0:02:53]} 10. a3 {[%clk 0:02:47]}  Ba5 {[%clk 0:02:53]} 11. Qh4 {[%clk 0:02:46]}  d4 {[%clk 0:02:52]} 12. Nb5 {[%clk 0:02:45]}  a6 {[%clk 0:02:48]} 13. Nbxd4 {[%clk 0:02:45]}  Nxd4 {[%clk 0:02:47]} 14. Nxd4 {[%clk 0:02:43]}  Bxd2+ {[%clk 0:02:44]} 15. Rxd2 {[%clk 0:02:44]}  Qe7 {[%clk 0:02:43]} 16. e3 {[%clk 0:02:39]}  Rfd8 {[%clk 0:02:41]} 17. Bd3 {[%clk 0:02:39]}  c5 {[%clk 0:02:41]} 18. Nxe6 {[%clk 0:02:36]}  Qxe6 {[%clk 0:02:42]} 19. Bc4 {[%clk 0:02:36]}  Qe7 {[%clk 0:02:42]} 20. Rhd1 {[%clk 0:02:35]}  Rxd2 {[%clk 0:02:41]} 21. Rxd2 {[%clk 0:02:36]}  Rd8 {[%clk 0:02:41]} 22. Rxd8+ {[%clk 0:02:35]}  Qxd8 {[%clk 0:02:42]} 23. g4 {[%clk 0:02:27]}  b5 {[%clk 0:02:41]} 24. Bd3 {[%clk 0:02:25]}  c4 {[%clk 0:02:41]} 25. Bf5 {[%clk 0:02:24]}  Qd6 {[%clk 0:02:41]} 26. g5 {[%clk 0:02:16]}  hxg5 {[%clk 0:02:41]} 27. Qxg5 {[%clk 0:02:16]}  c3 {[%clk 0:02:41]} 28. h6 {[%clk 0:02:09]}  cxb2+ {[%clk 0:02:31]} 29. Kxb2 {[%clk 0:02:10]}  Qe5+ {[%clk 0:02:29]} 30. c3 {[%clk 0:02:08]}  g6 {[%clk 0:02:29]} 31. h7+ {[%clk 0:01:59]}  Kxh7 {[%clk 0:02:28]} 32. Qh4+ {[%clk 0:01:59]}  Kg7 {[%clk 0:02:28]} 33. Bc2 {[%clk 0:01:56]}  Nd5 {[%clk 0:02:28]} 34. Qd4 {[%clk 0:01:56]}  Kf6 {[%clk 0:02:26]} 35. Be4 {[%clk 0:01:42]}  Qxd4 {[%clk 0:02:24]} 36. cxd4 {[%clk 0:01:42]}  Nb6 {[%clk 0:02:24]} 37. Bd3 {[%clk 0:01:38]}  Ke6 {[%clk 0:02:22]} 38. e4 {[%clk 0:01:37]}  f5 {[%clk 0:02:22]} 39. f3 {[%clk 0:01:37]}  f4 {[%clk 0:02:21]} 40. Kc3 {[%clk 0:01:34]}  g5 {[%clk 0:02:20]} 41. Kb4 {[%clk 0:01:34]}  Kd6 {[%clk 0:02:18]} 42. Ka5 {[%clk 0:01:26]}  Nc4+ {[%clk 0:02:18]} 43. Kxa6 {[%clk 0:00:45]}  Nxa3 {[%clk 0:02:15]} 44. Kb7 {[%clk 0:00:40]}  b4 {[%clk 0:02:15]} 45. e5+ {[%clk 0:00:39]}  Kd5 {[%clk 0:02:13]} 46. Kc7 {[%clk 0:00:37]}  b3 {[%clk 0:02:12]} 47. Kd7 {[%clk 0:00:36]}  Nc2 {[%clk 0:02:09]} 48. e6 {[%clk 0:00:27]}  Nxd4 {[%clk 0:02:05]} 49. e7 {[%clk 0:00:25]} 1-0


[Site "https://www.chess.com"]

[Event "Titled Tuesday Blitz May 10 Late 2022"]
[White "Vujic, Mihailo"]
[Black "Petrovskyi, Vadym"]
[WhiteFideId "918873"]
[BlackFideId "14165210"]
[WhiteElo "2516"]
[BlackElo "2784"]
[Result "1-0"]
[Round "02"]
[TimeControl "180+1"]
[Date "2022.05.11"]
[WhiteClock "0:00:07"]
[BlackClock "0:00:10"]

1. e4 {[%clk 0:02:47]}  c5 {[%clk 0:02:55]} 2. Nf3 {[%clk 0:02:46]}  d6 {[%clk 0:02:54]} 3. c3 {[%clk 0:02:46]}  Nf6 {[%clk 0:02:53]} 4. Be2 {[%clk 0:02:47]}  g6 {[%clk 0:02:53]} 5. O-O {[%clk 0:02:48]}  Bg7 {[%clk 0:02:53]} 6. Bb5+ {[%clk 0:02:48]}  Nc6 {[%clk 0:02:51]} 7. Re1 {[%clk 0:02:46]}  O-O {[%clk 0:02:51]} 8. d4 {[%clk 0:02:45]}  cxd4 {[%clk 0:02:52]} 9. cxd4 {[%clk 0:02:45]}  Bg4 {[%clk 0:02:52]} 10. Bxc6 {[%clk 0:02:44]}  bxc6 {[%clk 0:02:51]} 11. Nc3 {[%clk 0:02:45]}  Rb8 {[%clk 0:02:50]} 12. h3 {[%clk 0:02:45]}  Bxf3 {[%clk 0:02:45]} 13. Qxf3 {[%clk 0:02:46]}  Nd7 {[%clk 0:02:46]} 14. d5 {[%clk 0:02:19]}  c5 {[%clk 0:02:40]} 15. b3 {[%clk 0:02:11]}  f5 {[%clk 0:02:25]} 16. Bd2 {[%clk 0:02:00]}  f4 {[%clk 0:02:15]} 17. h4 {[%clk 0:01:50]}  Ne5 {[%clk 0:02:10]} 18. Qh3 {[%clk 0:01:50]}  f3 {[%clk 0:02:10]} 19. g3 {[%clk 0:01:47]}  c4 {[%clk 0:02:07]} 20. h5 {[%clk 0:01:35]}  gxh5 {[%clk 0:01:59]} 21. Qxh5 {[%clk 0:01:30]}  Qc8 {[%clk 0:01:57]} 22. Rec1 {[%clk 0:01:00]}  Nd3 {[%clk 0:01:53]} 23. Rc2 {[%clk 0:00:58]}  cxb3 {[%clk 0:01:51]} 24. axb3 {[%clk 0:00:58]}  Rxb3 {[%clk 0:01:52]} 25. Rxa7 {[%clk 0:00:36]}  Nxf2 {[%clk 0:01:47]} 26. Rxe7 {[%clk 0:00:29]}  Nh3+ {[%clk 0:01:21]} 27. Kh2 {[%clk 0:00:27]}  f2 {[%clk 0:01:19]} 28. Bh6 {[%clk 0:00:10]}  f1=Q {[%clk 0:00:27]} 29. Rxg7+ {[%clk 0:00:09]}  Kh8 {[%clk 0:00:27]} 30. Rxh7+ {[%clk 0:00:07]}  Kxh7 {[%clk 0:00:28]} 31. Bf4+ {[%clk 0:00:06]}  Kg7 {[%clk 0:00:25]} 32. Qh6+ {[%clk 0:00:04]}  Kf7 {[%clk 0:00:25]} 33. Qh7+ {[%clk 0:00:03]}  Ke8 {[%clk 0:00:23]} 34. Qg6+ {[%clk 0:00:03]}  Rf7 {[%clk 0:00:11]} 35. Qg8+ {[%clk 0:00:03]}  Ke7 {[%clk 0:00:07]} 36. Qxc8 {[%clk 0:00:02]}  Qg1+ {[%clk 0:00:07]} 37. Kxh3 {[%clk 0:00:02]}  Rh7+ {[%clk 0:00:08]} 38. Kg4 {[%clk 0:00:02]}  Rg7+ {[%clk 0:00:06]} 39. Kf5 {[%clk 0:00:02]}  Rf7+ {[%clk 0:00:06]} 40. Kg6 {[%clk 0:00:02]}  Qa7 {[%clk 0:00:07]} 41. Qe6+ {[%clk 0:00:01]}  Kd8 {[%clk 0:00:07]} 42. Qxf7 {[%clk 0:00:01]}  Qxf7+ {[%clk 0:00:07]} 43. Kxf7 {[%clk 0:00:02]}  Kd7 {[%clk 0:00:07]} 44. Bg5 {[%clk 0:00:02]}  Rb4 {[%clk 0:00:07]} 45. e5 {[%clk 0:00:03]}  Rc4 {[%clk 0:00:07]} 46. e6+ {[%clk 0:00:04]}  Kc7 {[%clk 0:00:08]} 47. e7 {[%clk 0:00:05]}  Kb7 {[%clk 0:00:08]} 48. Ke6 {[%clk 0:00:05]}  Kb6 {[%clk 0:00:09]} 49. Kd7 {[%clk 0:00:06]}  Kc5 {[%clk 0:00:09]} 50. e8=Q {[%clk 0:00:07]}  Kd4 {[%clk 0:00:10]} 51. Qe3# {[%clk 0:00:07]} 1-0


[Site "https://www.chess.com"]

[Event "Titled Tuesday Blitz May 10 Late 2022"]
[White "Wagner, Dennis"]
[Black "Can, Melih Kaan"]
[WhiteFideId "24650684"]
[BlackFideId "6317383"]
[WhiteElo "2355"]
[BlackElo "2049"]
[Result "1/2-1/2"]
[Round "02"]
[TimeControl "180+1"]
[Date "2022.05.11"]
[WhiteClock "0:00:07"]
[BlackClock "0:00:06"]

1. Nf3 {[%clk 0:03:00]}  c5 {[%clk 0:02:58]} 2. c4 {[%clk 0:02:57]}  Nc6 {[%clk 0:02:58]} 3. Nc3 {[%clk 0:02:57]}  g6 {[%clk 0:02:58]} 4. e3 {[%clk 0:02:57]}  Nf6 {[%clk 0:02:56]} 5. d4 {[%clk 0:02:57]}  cxd4 {[%clk 0:02:57]} 6. exd4 {[%clk 0:02:58]}  d5 {[%clk 0:02:57]} 7. cxd5 {[%clk 0:02:58]}  Nxd5 {[%clk 0:02:58]} 8. Qb3 {[%clk 0:02:58]}  Nxc3 {[%clk 0:02:57]} 9. Bc4 {[%clk 0:02:58]}  e6 {[%clk 0:02:50]} 10. bxc3 {[%clk 0:02:57]}  Bg7 {[%clk 0:02:47]} 11. Ba3 {[%clk 0:02:57]}  Na5 {[%clk 0:02:38]} 12. Bb5+ {[%clk 0:02:41]}  Bd7 {[%clk 0:02:37]} 13. Qa4 {[%clk 0:02:32]}  b6 {[%clk 0:02:32]} 14. O-O {[%clk 0:02:18]}  Bxb5 {[%clk 0:02:31]} 15. Qxb5+ {[%clk 0:02:18]}  Qd7 {[%clk 0:02:32]} 16. Qd3 {[%clk 0:02:15]}  Rc8 {[%clk 0:02:32]} 17. Nd2 {[%clk 0:02:05]}  Qa4 {[%clk 0:02:25]} 18. Bb4 {[%clk 0:01:49]}  Nc6 {[%clk 0:02:13]} 19. Bd6 {[%clk 0:01:46]}  Bf8 {[%clk 0:01:38]} 20. Bxf8 {[%clk 0:01:40]}  Kxf8 {[%clk 0:01:38]} 21. c4 {[%clk 0:01:40]}  Kg7 {[%clk 0:01:30]} 22. d5 {[%clk 0:01:39]}  exd5 {[%clk 0:01:25]} 23. cxd5 {[%clk 0:01:37]}  Qd4 {[%clk 0:01:20]} 24. Qxd4+ {[%clk 0:00:51]}  Nxd4 {[%clk 0:01:21]} 25. Nb3 {[%clk 0:00:51]}  Ne2+ {[%clk 0:01:16]} 26. Kh1 {[%clk 0:00:51]}  Rhd8 {[%clk 0:01:16]} 27. Rfe1 {[%clk 0:00:46]}  Nf4 {[%clk 0:01:01]} 28. Re7 {[%clk 0:00:41]}  a5 {[%clk 0:00:49]} 29. Rb7 {[%clk 0:00:42]}  a4 {[%clk 0:00:49]} 30. Nd4 {[%clk 0:00:25]}  Rxd5 {[%clk 0:00:47]} 31. Nf3 {[%clk 0:00:25]}  Rc2 {[%clk 0:00:43]} 32. Rf1 {[%clk 0:00:03]}  b5 {[%clk 0:00:35]} 33. a3 {[%clk 0:00:03]}  Ra2 {[%clk 0:00:33]} 34. g3 {[%clk 0:00:03]}  Nd3 {[%clk 0:00:32]} 35. Kg2 {[%clk 0:00:03]}  Rxa3 {[%clk 0:00:30]} 36. h4 {[%clk 0:00:03]}  h6 {[%clk 0:00:30]} 37. Nh2 {[%clk 0:00:03]}  Ne5 {[%clk 0:00:30]} 38. Re1 {[%clk 0:00:03]}  Ra2 {[%clk 0:00:27]} 39. Nf3 {[%clk 0:00:03]}  Nxf3 {[%clk 0:00:26]} 40. Kxf3 {[%clk 0:00:04]}  Rf5+ {[%clk 0:00:26]} 41. Kg4 {[%clk 0:00:04]}  Raxf2 {[%clk 0:00:25]} 42. Re8 {[%clk 0:00:05]}  Rh2 {[%clk 0:00:24]} 43. h5 {[%clk 0:00:03]}  Rg5+ {[%clk 0:00:18]} 44. Kf3 {[%clk 0:00:03]}  Rhxh5 {[%clk 0:00:17]} 45. Rbb8 {[%clk 0:00:04]}  Rf5+ {[%clk 0:00:17]} 46. Kg2 {[%clk 0:00:04]}  b4 {[%clk 0:00:15]} 47. Rg8+ {[%clk 0:00:03]}  Kf6 {[%clk 0:00:15]} 48. Rxb4 {[%clk 0:00:04]}  Ra5 {[%clk 0:00:13]} 49. Rc8 {[%clk 0:00:03]}  Rhe5 {[%clk 0:00:12]} 50. Rc2 {[%clk 0:00:03]}  a3 {[%clk 0:00:12]} 51. Ra2 {[%clk 0:00:04]}  Rec5 {[%clk 0:00:10]} 52. Rb3 {[%clk 0:00:04]}  Rc4 {[%clk 0:00:09]} 53. Rf3+ {[%clk 0:00:05]}  Kg7 {[%clk 0:00:09]} 54. Rfxa3 {[%clk 0:00:05]}  Rxa3 {[%clk 0:00:08]} 55. Rxa3 {[%clk 0:00:06]}  Rc6 {[%clk 0:00:09]} 56. Ra5 {[%clk 0:00:07]}  h5 {[%clk 0:00:09]} 57. Kf3 {[%clk 0:00:07]}  Re6 {[%clk 0:00:10]} 58. Kg2 {[%clk 0:00:07]}  f6 {[%clk 0:00:10]} 59. Kf3 {[%clk 0:00:08]}  g5 {[%clk 0:00:10]} 60. Rb5 {[%clk 0:00:08]}  Kg6 {[%clk 0:00:11]} 61. Ra5 {[%clk 0:00:09]}  Re5 {[%clk 0:00:11]} 62. Ra8 {[%clk 0:00:09]}  Rf5+ {[%clk 0:00:12]} 63. Kg2 {[%clk 0:00:09]}  Rb5 {[%clk 0:00:13]} 64. Rg8+ {[%clk 0:00:09]}  Kf5 {[%clk 0:00:13]} 65. Rc8 {[%clk 0:00:09]}  Rb4 {[%clk 0:00:13]} 66. Rc6 {[%clk 0:00:08]}  Kg4 {[%clk 0:00:13]} 67. Rxf6 {[%clk 0:00:07]}  Rb2+ {[%clk 0:00:13]} 68. Kg1 {[%clk 0:00:06]}  Kxg3 {[%clk 0:00:13]} 69. Rf1 {[%clk 0:00:06]}  h4 {[%clk 0:00:14]} 70. Rc1 {[%clk 0:00:06]}  Rb3 {[%clk 0:00:13]} 71. Kh1 {[%clk 0:00:06]}  g4 {[%clk 0:00:13]} 72. Rg1+ {[%clk 0:00:07]}  Kh3 {[%clk 0:00:13]} 73. Rd1 {[%clk 0:00:05]}  Rb2 {[%clk 0:00:13]} 74. Rc1 {[%clk 0:00:05]}  g3 {[%clk 0:00:12]} 75. Rd1 {[%clk 0:00:04]}  Rb4 {[%clk 0:00:11]} 76. Rc1 {[%clk 0:00:05]}  Kg4 {[%clk 0:00:12]} 77. Rd1 {[%clk 0:00:04]}  Rb3 {[%clk 0:00:12]} 78. Re1 {[%clk 0:00:05]}  Kf3 {[%clk 0:00:11]} 79. Rc1 {[%clk 0:00:05]}  h3 {[%clk 0:00:11]} 80. Rd1 {[%clk 0:00:06]}  Rb2 {[%clk 0:00:10]} 81. Rc1 {[%clk 0:00:06]}  Rh2+ {[%clk 0:00:08]} 82. Kg1 {[%clk 0:00:06]}  Rg2+ {[%clk 0:00:08]} 83. Kh1 {[%clk 0:00:06]}  Re2 {[%clk 0:00:08]} 84. Rf1+ {[%clk 0:00:06]}  Ke3 {[%clk 0:00:07]} 85. Ra1 {[%clk 0:00:07]}  Kf2 {[%clk 0:00:06]} 86. Rf1+ {[%clk 0:00:07]}  Ke3 {[%clk 0:00:06]} 87. Ra1 {[%clk 0:00:06]}  Kd2 {[%clk 0:00:06]} 88. Ra2+ {[%clk 0:00:06]}  Ke1 {[%clk 0:00:05]} 89. Ra1+ {[%clk 0:00:07]}  Kd2 {[%clk 0:00:05]} 90. Ra2+ {[%clk 0:00:07]}  Ke3 {[%clk 0:00:06]} 91. Ra1 {[%clk 0:00:07]} 1/2-1/2


[Site "https://www.chess.com"]

[Event "Titled Tuesday Blitz May 10 Late 2022"]
[White "Weber, Samuel"]
[Black "Hnydiuk, Aleksander"]
[WhiteFideId "12924008"]
[BlackFideId "1109057"]
[WhiteElo "2215"]
[BlackElo "2374"]
[Result "1-0"]
[Round "02"]
[TimeControl "180+1"]
[Date "2022.05.11"]
[WhiteClock "0:01:45"]
[BlackClock "0:00:48"]

1. b3 {[%clk 0:03:00]}  a5 {[%clk 0:02:58]} 2. a4 {[%clk 0:02:59]}  e5 {[%clk 0:02:56]} 3. Bb2 {[%clk 0:02:59]}  f6 {[%clk 0:02:53]} 4. g3 {[%clk 0:03:00]}  d5 {[%clk 0:02:53]} 5. Bg2 {[%clk 0:03:00]}  c5 {[%clk 0:02:52]} 6. e3 {[%clk 0:02:58]}  Nc6 {[%clk 0:02:51]} 7. Ne2 {[%clk 0:02:59]}  h5 {[%clk 0:02:49]} 8. O-O {[%clk 0:03:00]}  h4 {[%clk 0:02:48]} 9. f4 {[%clk 0:03:00]}  hxg3 {[%clk 0:02:45]} 10. Nxg3 {[%clk 0:03:00]}  Bh3 {[%clk 0:02:32]} 11. fxe5 {[%clk 0:02:59]}  Bxg2 {[%clk 0:02:31]} 12. Kxg2 {[%clk 0:02:58]}  fxe5 {[%clk 0:02:26]} 13. Qg4 {[%clk 0:02:58]}  Nf6 {[%clk 0:02:09]} 14. Qg6+ {[%clk 0:02:58]}  Kd7 {[%clk 0:02:09]} 15. Nc3 {[%clk 0:02:53]}  Kc7 {[%clk 0:02:06]} 16. Nb5+ {[%clk 0:02:52]}  Kb6 {[%clk 0:02:06]} 17. d4 {[%clk 0:02:48]}  Qd7 {[%clk 0:02:04]} 18. Qf5 {[%clk 0:02:29]}  Qxf5 {[%clk 0:01:58]} 19. Rxf5 {[%clk 0:02:29]}  cxd4 {[%clk 0:01:54]} 20. exd4 {[%clk 0:02:29]}  e4 {[%clk 0:01:55]} 21. c4 {[%clk 0:02:28]}  Nb4 {[%clk 0:01:45]} 22. c5+ {[%clk 0:02:27]}  Kc6 {[%clk 0:01:42]} 23. h3 {[%clk 0:02:10]}  Be7 {[%clk 0:01:42]} 24. Raf1 {[%clk 0:02:09]}  Nd3 {[%clk 0:01:38]} 25. Bc3 {[%clk 0:02:07]}  Rh7 {[%clk 0:01:29]} 26. Rg5 {[%clk 0:02:06]}  Rah8 {[%clk 0:01:25]} 27. Nf5 {[%clk 0:02:05]}  Bf8 {[%clk 0:01:23]} 28. h4 {[%clk 0:02:03]}  Ng4 {[%clk 0:01:10]} 29. Rxg4 {[%clk 0:02:00]}  Kd7 {[%clk 0:00:50]} 30. Bxa5 {[%clk 0:01:46]}  Ke6 {[%clk 0:00:49]} 31. Nc7+ {[%clk 0:01:45]}  Kd7 {[%clk 0:00:48]} 32. Nxd5 {[%clk 0:01:45]} 1-0


[Site "https://www.chess.com"]

[Event "Titled Tuesday Blitz May 10 Late 2022"]
[White "Zivkovic, Nemanja"]
[Black "Hoffmann, Asa"]
[WhiteFideId "942154"]
[BlackFideId "2001470"]
[WhiteElo "2364"]
[BlackElo "2117"]
[Result "1-0"]
[Round "02"]
[TimeControl "180+1"]
[Date "2022.05.11"]
[WhiteClock "0:01:46"]
[BlackClock "0:00:37"]

1. e4 {[%clk 0:02:58]}  d6 {[%clk 0:02:57]} 2. d4 {[%clk 0:02:57]}  Nf6 {[%clk 0:02:51]} 3. Nc3 {[%clk 0:02:55]}  c6 {[%clk 0:02:51]} 4. Nf3 {[%clk 0:02:55]}  Bg4 {[%clk 0:02:50]} 5. Be3 {[%clk 0:02:53]}  e6 {[%clk 0:02:48]} 6. Be2 {[%clk 0:02:53]}  d5 {[%clk 0:02:48]} 7. e5 {[%clk 0:02:52]}  Nfd7 {[%clk 0:02:47]} 8. Nd2 {[%clk 0:02:48]}  Bf5 {[%clk 0:02:46]} 9. g4 {[%clk 0:02:47]}  Bg6 {[%clk 0:02:44]} 10. O-O {[%clk 0:02:47]}  c5 {[%clk 0:02:37]} 11. f4 {[%clk 0:02:46]}  cxd4 {[%clk 0:02:35]} 12. Bxd4 {[%clk 0:02:46]}  Nc6 {[%clk 0:02:35]} 13. Bf2 {[%clk 0:02:46]}  f5 {[%clk 0:02:23]} 14. exf6 {[%clk 0:02:42]}  Nxf6 {[%clk 0:02:17]} 15. Bd3 {[%clk 0:02:25]}  Bd6 {[%clk 0:02:10]} 16. Bg3 {[%clk 0:02:25]}  Bxd3 {[%clk 0:02:00]} 17. cxd3 {[%clk 0:02:23]}  Qb6+ {[%clk 0:01:58]} 18. Kh1 {[%clk 0:02:23]}  Qxb2 {[%clk 0:01:49]} 19. Rc1 {[%clk 0:02:21]}  O-O {[%clk 0:01:37]} 20. h3 {[%clk 0:02:16]}  Rac8 {[%clk 0:01:36]} 21. Rc2 {[%clk 0:02:15]}  Qb6 {[%clk 0:01:35]} 22. Nf3 {[%clk 0:02:13]}  Nd4 {[%clk 0:01:30]} 23. Na4 {[%clk 0:02:02]}  Qb4 {[%clk 0:01:24]} 24. Rb2 {[%clk 0:02:01]}  Nxf3 {[%clk 0:00:49]} 25. Rxb4 {[%clk 0:01:57]}  Bxb4 {[%clk 0:00:47]} 26. Qxf3 {[%clk 0:01:56]}  b5 {[%clk 0:00:44]} 27. Rb1 {[%clk 0:01:54]}  Bd6 {[%clk 0:00:39]} 28. Rxb5 {[%clk 0:01:47]}  Rc1+ {[%clk 0:00:38]} 29. Kg2 {[%clk 0:01:47]}  Rfc8 {[%clk 0:00:37]} 30. Rb2 {[%clk 0:01:46]} 1-0


[Site "https://www.chess.com"]